[Event "Titled Tuesday Blitz April 4 Late 2023"]
[White "Chabris, Christopher"]
[Black "Petrovic, Aleksa"]
[WhiteFideId "2005263"]
[BlackFideId "967629"]
[WhiteElo "2233"]
[BlackElo "2309"]
[Result "0-1"]
[Round "03"]
[TimeControl "180+2"]
[Date "2023.04.04"]
[WhiteClock "0:00:15"]
[BlackClock "0:00:26"]

1. e4 {[%clk 0:02:59]}  e6 {[%clk 0:02:57]} 2. d4 {[%clk 0:02:59]}  d5 {[%clk 0:02:55]} 3. Nc3 {[%clk 0:02:59]}  Bb4 {[%clk 0:02:54]} 4. e5 {[%clk 0:03:00]}  c5 {[%clk 0:02:53]} 5. a3 {[%clk 0:03:00]}  Bxc3+ {[%clk 0:02:54]} 6. bxc3 {[%clk 0:03:00]}  Qa5 {[%clk 0:02:54]} 7. Bd2 {[%clk 0:02:59]}  Qa4 {[%clk 0:02:55]} 8. h4 {[%clk 0:02:59]}  Nc6 {[%clk 0:02:47]} 9. h5 {[%clk 0:02:57]}  h6 {[%clk 0:02:46]} 10. Nf3 {[%clk 0:02:33]}  b6 {[%clk 0:02:44]} 11. Rh4 {[%clk 0:02:25]}  c4 {[%clk 0:02:42]} 12. Rg4 {[%clk 0:02:22]}  Kf8 {[%clk 0:02:42]} 13. Rf4 {[%clk 0:02:12]}  Nge7 {[%clk 0:02:39]} 14. g4 {[%clk 0:02:11]}  g5 {[%clk 0:02:36]} 15. Rf6 {[%clk 0:02:10]}  Ng8 {[%clk 0:02:34]} 16. Nh2 {[%clk 0:01:28]}  Nxf6 {[%clk 0:02:29]} 17. exf6 {[%clk 0:01:28]}  e5 {[%clk 0:02:30]} 18. dxe5 {[%clk 0:01:23]}  Nxe5 {[%clk 0:02:26]} 19. f4 {[%clk 0:01:09]}  Nd7 {[%clk 0:01:15]} 20. fxg5 {[%clk 0:01:05]}  Qc6 {[%clk 0:01:13]} 21. Qf3 {[%clk 0:00:58]}  Ne5 {[%clk 0:00:59]} 22. Qf4 {[%clk 0:00:52]}  Qe6 {[%clk 0:00:58]} 23. O-O-O {[%clk 0:00:48]}  hxg5 {[%clk 0:00:56]} 24. Qxg5 {[%clk 0:00:42]}  Rg8 {[%clk 0:00:56]} 25. Qh6+ {[%clk 0:00:41]}  Ke8 {[%clk 0:00:57]} 26. Re1 {[%clk 0:00:36]}  Kd7 {[%clk 0:00:47]} 27. Bf4 {[%clk 0:00:28]}  Nd3+ {[%clk 0:00:44]} 28. cxd3 {[%clk 0:00:26]}  Qxe1+ {[%clk 0:00:44]} 29. Kc2 {[%clk 0:00:25]}  Ba6 {[%clk 0:00:33]} 30. d4 {[%clk 0:00:19]}  Rae8 {[%clk 0:00:29]} 31. Nf3 {[%clk 0:00:15]}  Qxf1 {[%clk 0:00:26]} 32. Ne5+ {[%clk 0:00:15]}  Rxe5 {[%clk 0:00:26]} 33. Bxe5 {[%clk 0:00:15]}  Rxg4 {[%clk 0:00:26]} 34. Qf8 {[%clk 0:00:15]}  Rg2# {[%clk 0:00:26]} 0-1


[Site "https://www.chess.com"]

[Event "Titled Tuesday Blitz April 4 Late 2023"]
[White "Loiacono, Antonio"]
[Black "Djordjevic, Dejan N"]
[WhiteFideId "895415"]
[BlackFideId "913316"]
[WhiteElo "2257"]
[BlackElo "2261"]
[Result "1-0"]
[Round "03"]
[TimeControl "180+2"]
[Date "2023.04.04"]
[WhiteClock "0:00:07"]
[BlackClock "0:00:17"]

1. e4 {[%clk 0:03:00]}  c5 {[%clk 0:02:59]} 2. Nf3 {[%clk 0:03:00]}  Nc6 {[%clk 0:02:59]} 3. d4 {[%clk 0:03:00]}  cxd4 {[%clk 0:02:59]} 4. Nxd4 {[%clk 0:03:01]}  Nf6 {[%clk 0:02:59]} 5. Nc3 {[%clk 0:03:00]}  Qb6 {[%clk 0:02:58]} 6. Nb3 {[%clk 0:02:55]}  e6 {[%clk 0:02:58]} 7. Be3 {[%clk 0:02:54]}  Qc7 {[%clk 0:02:58]} 8. Be2 {[%clk 0:02:48]}  a6 {[%clk 0:02:58]} 9. f4 {[%clk 0:02:37]}  d6 {[%clk 0:02:57]} 10. a4 {[%clk 0:02:30]}  b6 {[%clk 0:02:57]} 11. O-O {[%clk 0:02:29]}  Be7 {[%clk 0:02:56]} 12. Bf3 {[%clk 0:02:28]}  Rb8 {[%clk 0:02:56]} 13. Qe2 {[%clk 0:02:17]}  O-O {[%clk 0:02:55]} 14. g4 {[%clk 0:02:15]}  Nd7 {[%clk 0:02:47]} 15. Rad1 {[%clk 0:02:05]}  Rd8 {[%clk 0:02:28]} 16. Qf2 {[%clk 0:02:05]}  b5 {[%clk 0:02:26]} 17. axb5 {[%clk 0:02:03]}  axb5 {[%clk 0:02:26]} 18. Qg2 {[%clk 0:01:44]}  b4 {[%clk 0:02:24]} 19. Ne2 {[%clk 0:01:37]}  e5 {[%clk 0:02:22]} 20. f5 {[%clk 0:01:32]}  Nb6 {[%clk 0:01:31]} 21. Kh1 {[%clk 0:01:10]}  Nc4 {[%clk 0:01:30]} 22. Bc1 {[%clk 0:01:10]}  Qb6 {[%clk 0:01:27]} 23. g5 {[%clk 0:01:04]}  Ne3 {[%clk 0:01:23]} 24. Bxe3 {[%clk 0:01:04]}  Qxe3 {[%clk 0:01:22]} 25. f6 {[%clk 0:00:58]}  Bf8 {[%clk 0:01:20]} 26. fxg7 {[%clk 0:00:45]}  Bxg7 {[%clk 0:01:19]} 27. Rd3 {[%clk 0:00:42]}  Qb6 {[%clk 0:01:10]} 28. Bh5 {[%clk 0:00:42]}  Be6 {[%clk 0:01:09]} 29. Rdf3 {[%clk 0:00:42]}  Rd7 {[%clk 0:00:58]} 30. Ng3 {[%clk 0:00:39]}  Nd4 {[%clk 0:00:55]} 31. Nxd4 {[%clk 0:00:36]}  Qxd4 {[%clk 0:00:55]} 32. c3 {[%clk 0:00:27]}  bxc3 {[%clk 0:00:54]} 33. bxc3 {[%clk 0:00:27]}  Qc4 {[%clk 0:00:51]} 34. Qf2 {[%clk 0:00:18]}  Rbb7 {[%clk 0:00:43]} 35. Qe3 {[%clk 0:00:17]}  Qa2 {[%clk 0:00:33]} 36. Nf5 {[%clk 0:00:16]}  Rb1 {[%clk 0:00:27]} 37. Qd3 {[%clk 0:00:07]}  Rxf1+ {[%clk 0:00:26]} 38. Rxf1 {[%clk 0:00:08]}  Bc4 {[%clk 0:00:23]} 39. Qf3 {[%clk 0:00:07]}  Bxf1 {[%clk 0:00:22]} 40. Qxf1 {[%clk 0:00:06]}  Qc2 {[%clk 0:00:20]} 41. Qf3 {[%clk 0:00:05]}  Ra7 {[%clk 0:00:19]} 42. Ne3 {[%clk 0:00:05]}  Ra1+ {[%clk 0:00:19]} 43. Nf1 {[%clk 0:00:06]}  Qc1 {[%clk 0:00:17]} 44. Qxf7+ {[%clk 0:00:06]}  Kh8 {[%clk 0:00:16]} 45. Qe8+ {[%clk 0:00:06]}  Bf8 {[%clk 0:00:17]} 46. Qxf8# {[%clk 0:00:07]} 1-0


[Site "https://www.chess.com"]

[Event "Titled Tuesday Blitz April 4 Late 2023"]
[White "Mei, Austin"]
[Black "Kornyukov, Alexey"]
[WhiteFideId "30948479"]
[BlackFideId "4150457"]
[WhiteElo "2125"]
[BlackElo "2352"]
[Result "1-0"]
[Round "03"]
[TimeControl "180+2"]
[Date "2023.04.04"]
[WhiteClock "0:00:57"]
[BlackClock "0:00:01"]

1. e4 {[%clk 0:03:00]}  c5 {[%clk 0:02:29]} 2. Nc3 {[%clk 0:03:00]}  Nc6 {[%clk 0:02:26]} 3. f4 {[%clk 0:02:59]}  g6 {[%clk 0:02:20]} 4. Nf3 {[%clk 0:02:59]}  Bg7 {[%clk 0:02:20]} 5. a4 {[%clk 0:02:59]}  e6 {[%clk 0:02:17]} 6. e5 {[%clk 0:02:59]}  Nge7 {[%clk 0:02:13]} 7. Ne4 {[%clk 0:02:58]}  O-O {[%clk 0:02:10]} 8. Bb5 {[%clk 0:02:34]}  b6 {[%clk 0:02:04]} 9. O-O {[%clk 0:02:31]}  Nf5 {[%clk 0:02:04]} 10. Bxc6 {[%clk 0:02:29]}  dxc6 {[%clk 0:02:02]} 11. d3 {[%clk 0:02:28]}  a5 {[%clk 0:01:40]} 12. g4 {[%clk 0:02:26]}  Nd4 {[%clk 0:01:37]} 13. Be3 {[%clk 0:02:21]}  f6 {[%clk 0:01:09]} 14. exf6 {[%clk 0:02:16]}  Bxf6 {[%clk 0:01:07]} 15. Nxf6+ {[%clk 0:02:11]}  Qxf6 {[%clk 0:01:02]} 16. c3 {[%clk 0:02:02]}  Nxf3+ {[%clk 0:00:59]} 17. Qxf3 {[%clk 0:02:03]}  e5 {[%clk 0:00:58]} 18. Qg3 {[%clk 0:01:58]}  exf4 {[%clk 0:00:27]} 19. Rxf4 {[%clk 0:01:59]}  Qe6 {[%clk 0:00:27]} 20. Rxf8+ {[%clk 0:01:45]}  Kxf8 {[%clk 0:00:27]} 21. Bh6+ {[%clk 0:01:45]}  Kg8 {[%clk 0:00:27]} 22. Re1 {[%clk 0:01:45]}  Qd7 {[%clk 0:00:11]} 23. h3 {[%clk 0:01:30]}  Ba6 {[%clk 0:00:10]} 24. Qe5 {[%clk 0:01:10]}  Bxd3 {[%clk 0:00:08]} 25. Qf6 {[%clk 0:01:06]}  Qf7 {[%clk 0:00:01]} 26. Qxc6 {[%clk 0:00:57]} 1-0


[Site "https://www.chess.com"]

[Event "Titled Tuesday Blitz April 4 Late 2023"]
[White "lolliNOPE"]
[Black "Goffredo_Fofi"]
[WhiteElo "2137"]
[BlackElo "2511"]
[Result "0-1"]
[Round "03"]
[TimeControl "180+2"]
[Date "2023.04.04"]
[WhiteClock "0:00:02"]
[BlackClock "0:00:12"]

1. e4 {[%clk 0:03:00]}  c6 {[%clk 0:03:00]} 2. d4 {[%clk 0:03:00]}  d5 {[%clk 0:03:00]} 3. Nc3 {[%clk 0:03:00]}  dxe4 {[%clk 0:03:00]} 4. Nxe4 {[%clk 0:03:01]}  Bf5 {[%clk 0:03:01]} 5. Ng3 {[%clk 0:03:01]}  Bg6 {[%clk 0:03:02]} 6. h4 {[%clk 0:03:01]}  h6 {[%clk 0:03:02]} 7. Nf3 {[%clk 0:02:59]}  Nd7 {[%clk 0:03:02]} 8. h5 {[%clk 0:02:58]}  Bh7 {[%clk 0:03:03]} 9. Bd3 {[%clk 0:02:59]}  Bxd3 {[%clk 0:03:02]} 10. Qxd3 {[%clk 0:03:00]}  e6 {[%clk 0:03:03]} 11. Bf4 {[%clk 0:02:59]}  Qa5+ {[%clk 0:03:03]} 12. Bd2 {[%clk 0:02:58]}  Bb4 {[%clk 0:03:03]} 13. c3 {[%clk 0:02:55]}  Be7 {[%clk 0:03:04]} 14. c4 {[%clk 0:02:49]}  Qc7 {[%clk 0:03:04]} 15. O-O-O {[%clk 0:02:47]}  Ngf6 {[%clk 0:03:04]} 16. Kb1 {[%clk 0:02:45]}  b5 {[%clk 0:02:57]} 17. Ne4 {[%clk 0:02:36]}  Nxe4 {[%clk 0:02:50]} 18. Qxe4 {[%clk 0:02:34]}  bxc4 {[%clk 0:02:51]} 19. Rc1 {[%clk 0:02:33]}  Nf6 {[%clk 0:02:40]} 20. Qe2 {[%clk 0:02:20]}  O-O {[%clk 0:02:30]} 21. Qxc4 {[%clk 0:02:20]}  Rfc8 {[%clk 0:02:19]} 22. Ne5 {[%clk 0:02:10]}  Nd5 {[%clk 0:02:11]} 23. g4 {[%clk 0:02:03]}  c5 {[%clk 0:01:56]} 24. f4 {[%clk 0:01:56]}  cxd4 {[%clk 0:01:48]} 25. Qxc7 {[%clk 0:01:49]}  Rxc7 {[%clk 0:01:48]} 26. Rxc7 {[%clk 0:01:50]}  Nxc7 {[%clk 0:01:49]} 27. Rc1 {[%clk 0:01:50]}  Nd5 {[%clk 0:01:16]} 28. Rc4 {[%clk 0:01:46]}  Rb8 {[%clk 0:00:45]} 29. Rxd4 {[%clk 0:01:44]}  Bc5 {[%clk 0:00:45]} 30. Rc4 {[%clk 0:01:35]}  Bd6 {[%clk 0:00:45]} 31. a3 {[%clk 0:01:25]}  Rb7 {[%clk 0:00:40]} 32. Kc2 {[%clk 0:01:19]}  Bc7 {[%clk 0:00:40]} 33. b4 {[%clk 0:01:15]}  Nf6 {[%clk 0:00:40]} 34. a4 {[%clk 0:00:58]}  Nd5 {[%clk 0:00:40]} 35. b5 {[%clk 0:00:53]}  f6 {[%clk 0:00:40]} 36. Ng6 {[%clk 0:00:49]}  Kf7 {[%clk 0:00:39]} 37. Re4 {[%clk 0:00:35]}  Bd6 {[%clk 0:00:35]} 38. Rc4 {[%clk 0:00:33]}  Nb6 {[%clk 0:00:27]} 39. Rd4 {[%clk 0:00:29]}  Bc5 {[%clk 0:00:27]} 40. Re4 {[%clk 0:00:29]}  Rd7 {[%clk 0:00:26]} 41. Bc3 {[%clk 0:00:23]}  Nd5 {[%clk 0:00:26]} 42. a5 {[%clk 0:00:22]}  Rc7 {[%clk 0:00:23]} 43. Kb3 {[%clk 0:00:18]}  Bd6 {[%clk 0:00:18]} 44. Bd2 {[%clk 0:00:16]}  Rb7 {[%clk 0:00:18]} 45. Ka4 {[%clk 0:00:14]}  Rc7 {[%clk 0:00:18]} 46. Be3 {[%clk 0:00:11]}  Nxe3 {[%clk 0:00:16]} 47. Rxe3 {[%clk 0:00:11]}  Bxf4 {[%clk 0:00:16]} 48. Re4 {[%clk 0:00:09]}  Bd6 {[%clk 0:00:16]} 49. b6 {[%clk 0:00:08]}  axb6 {[%clk 0:00:17]} 50. axb6 {[%clk 0:00:09]}  Rc8 {[%clk 0:00:16]} 51. Kb5 {[%clk 0:00:09]}  e5 {[%clk 0:00:16]} 52. Ra4 {[%clk 0:00:08]}  Ke6 {[%clk 0:00:15]} 53. Ra7 {[%clk 0:00:08]}  e4 {[%clk 0:00:16]} 54. Rxg7 {[%clk 0:00:07]}  e3 {[%clk 0:00:16]} 55. b7 {[%clk 0:00:06]}  Rb8 {[%clk 0:00:15]} 56. Kc6 {[%clk 0:00:05]}  e2 {[%clk 0:00:15]} 57. Re7+ {[%clk 0:00:03]}  Bxe7 {[%clk 0:00:15]} 58. Nf4+ {[%clk 0:00:04]}  Ke5 {[%clk 0:00:13]} 59. Nxe2 {[%clk 0:00:05]}  f5 {[%clk 0:00:11]} 60. gxf5 {[%clk 0:00:05]}  Kxf5 {[%clk 0:00:12]} 61. Nd4+ {[%clk 0:00:05]}  Kg5 {[%clk 0:00:12]} 62. Kc7 {[%clk 0:00:02]}  Bd6+ {[%clk 0:00:12]} 0-1


[Site "https://www.chess.com"]

[Event "Titled Tuesday Blitz April 4 Late 2023"]
[White "Roebers, Eline"]
[Black "Tarnowska, Aleksandra"]
[WhiteFideId "1058401"]
[BlackFideId "1180967"]
[WhiteElo "2510"]
[BlackElo "1776"]
[Result "1-0"]
[Round "03"]
[TimeControl "180+2"]
[Date "2023.04.04"]
[WhiteClock "0:01:42"]
[BlackClock "0:00:02"]

1. e4 {[%clk 0:02:55]}  c5 {[%clk 0:03:00]} 2. Nf3 {[%clk 0:02:52]}  e6 {[%clk 0:03:00]} 3. d4 {[%clk 0:02:52]}  cxd4 {[%clk 0:03:00]} 4. Nxd4 {[%clk 0:02:53]}  a6 {[%clk 0:03:00]} 5. Bd3 {[%clk 0:02:52]}  Nc6 {[%clk 0:02:55]} 6. Nxc6 {[%clk 0:02:50]}  dxc6 {[%clk 0:02:51]} 7. O-O {[%clk 0:02:50]}  e5 {[%clk 0:02:47]} 8. Nd2 {[%clk 0:02:50]}  Nf6 {[%clk 0:02:44]} 9. Nc4 {[%clk 0:02:47]}  Qc7 {[%clk 0:01:52]} 10. a4 {[%clk 0:02:44]}  Bg4 {[%clk 0:01:44]} 11. f3 {[%clk 0:02:42]}  Be6 {[%clk 0:01:41]} 12. Be3 {[%clk 0:02:36]}  Bxc4 {[%clk 0:01:40]} 13. Bxc4 {[%clk 0:02:35]}  Rd8 {[%clk 0:01:37]} 14. Qe2 {[%clk 0:02:35]}  b5 {[%clk 0:01:14]} 15. axb5 {[%clk 0:02:30]}  cxb5 {[%clk 0:01:11]} 16. Bd3 {[%clk 0:02:29]}  Qb7 {[%clk 0:01:04]} 17. Rfd1 {[%clk 0:02:11]}  Bd6 {[%clk 0:01:01]} 18. Rxa6 {[%clk 0:02:09]}  O-O {[%clk 0:00:43]} 19. Ra7 {[%clk 0:02:05]}  Qb8 {[%clk 0:00:32]} 20. Bxb5 {[%clk 0:02:03]}  Bc5 {[%clk 0:00:13]} 21. Bxc5 {[%clk 0:01:58]}  Rxd1+ {[%clk 0:00:12]} 22. Qxd1 {[%clk 0:01:58]}  Qxb5 {[%clk 0:00:12]} 23. b4 {[%clk 0:01:57]}  Rc8 {[%clk 0:00:10]} 24. Qd6 {[%clk 0:01:52]}  h6 {[%clk 0:00:10]} 25. Qxe5 {[%clk 0:01:47]}  Qe2 {[%clk 0:00:09]} 26. h3 {[%clk 0:01:45]}  Qe1+ {[%clk 0:00:09]} 27. Kh2 {[%clk 0:01:45]}  Re8 {[%clk 0:00:09]} 28. Qc7 {[%clk 0:01:44]}  Nh5 {[%clk 0:00:01]} 29. Qxf7+ {[%clk 0:01:43]}  Kh7 {[%clk 0:00:02]} 30. Qxh5 {[%clk 0:01:42]} 1-0


[Site "https://www.chess.com"]

[Event "Titled Tuesday Blitz April 4 Late 2023"]
[White "Koutlas, Nikolaos"]
[Black "Steenbekkers, Franck"]
[WhiteFideId "25827138"]
[BlackFideId "1004220"]
[WhiteElo "2215"]
[BlackElo "1952"]
[Result "1-0"]
[Round "03"]
[TimeControl "180+2"]
[Date "2023.04.04"]
[WhiteClock "0:01:01"]
[BlackClock "0:01:11"]

1. b3 {[%clk 0:03:00]}  Nf6 {[%clk 0:02:57]} 2. Bb2 {[%clk 0:03:01]}  g6 {[%clk 0:02:58]} 3. g3 {[%clk 0:03:00]}  Bg7 {[%clk 0:02:58]} 4. Bg2 {[%clk 0:03:01]}  O-O {[%clk 0:02:57]} 5. Nf3 {[%clk 0:03:01]}  d6 {[%clk 0:02:57]} 6. O-O {[%clk 0:03:01]}  e5 {[%clk 0:02:57]} 7. c4 {[%clk 0:03:01]}  Nc6 {[%clk 0:02:56]} 8. Nc3 {[%clk 0:03:01]}  h6 {[%clk 0:02:55]} 9. d3 {[%clk 0:03:01]}  Be6 {[%clk 0:02:55]} 10. h3 {[%clk 0:02:59]}  Qd7 {[%clk 0:02:54]} 11. Kh2 {[%clk 0:02:59]}  Nh5 {[%clk 0:02:49]} 12. Nd5 {[%clk 0:02:55]}  f5 {[%clk 0:02:47]} 13. d4 {[%clk 0:02:40]}  e4 {[%clk 0:02:45]} 14. Nh4 {[%clk 0:02:40]}  Kh7 {[%clk 0:02:39]} 15. e3 {[%clk 0:02:40]}  Bxd5 {[%clk 0:02:35]} 16. cxd5 {[%clk 0:02:40]}  Ne7 {[%clk 0:02:35]} 17. f3 {[%clk 0:02:35]}  Nf6 {[%clk 0:02:20]} 18. fxe4 {[%clk 0:02:30]}  fxe4 {[%clk 0:02:19]} 19. Rxf6 {[%clk 0:02:13]}  Bxf6 {[%clk 0:02:12]} 20. Qe2 {[%clk 0:01:55]}  Bxh4 {[%clk 0:02:09]} 21. gxh4 {[%clk 0:01:56]}  Qf5 {[%clk 0:01:57]} 22. h5 {[%clk 0:01:45]}  Qxh5 {[%clk 0:01:52]} 23. Qxh5 {[%clk 0:01:44]}  gxh5 {[%clk 0:01:51]} 24. Bxe4+ {[%clk 0:01:45]}  Kh8 {[%clk 0:01:51]} 25. Kg3 {[%clk 0:01:39]}  Rf6 {[%clk 0:01:47]} 26. Rc1 {[%clk 0:01:24]}  Rg8+ {[%clk 0:01:44]} 27. Kh4 {[%clk 0:01:23]}  c6 {[%clk 0:01:36]} 28. dxc6 {[%clk 0:01:23]}  bxc6 {[%clk 0:01:32]} 29. d5 {[%clk 0:01:20]}  Rf8 {[%clk 0:01:22]} 30. dxc6 {[%clk 0:01:10]}  d5 {[%clk 0:01:20]} 31. Bd3 {[%clk 0:01:06]}  Kg8 {[%clk 0:01:17]} 32. Bxf6 {[%clk 0:01:04]}  Rxf6 {[%clk 0:01:16]} 33. c7 {[%clk 0:01:05]}  Rf8 {[%clk 0:01:13]} 34. Ba6 {[%clk 0:01:02]}  Kf7 {[%clk 0:01:13]} 35. c8=Q {[%clk 0:01:01]}  Nxc8 {[%clk 0:01:12]} 36. Rf1+ {[%clk 0:01:00]}  Ke7 {[%clk 0:01:11]} 37. Rxf8 {[%clk 0:01:01]} 1-0


[Site "https://www.chess.com"]

[Event "Titled Tuesday Blitz April 4 Late 2023"]
[White "Becerra, Juan David"]
[Black "tandercat"]
[WhiteFideId "4404998"]
[WhiteElo "2276"]
[BlackElo "1938"]
[Result "1-0"]
[Round "03"]
[TimeControl "180+2"]
[Date "2023.04.04"]
[WhiteClock "0:00:39"]
[BlackClock "0:00:02"]

1. e4 {[%clk 0:02:59]}  c5 {[%clk 0:03:00]} 2. d4 {[%clk 0:02:59]}  cxd4 {[%clk 0:02:59]} 3. c3 {[%clk 0:02:59]}  Nf6 {[%clk 0:02:58]} 4. e5 {[%clk 0:02:59]}  Nd5 {[%clk 0:02:58]} 5. cxd4 {[%clk 0:03:00]}  d6 {[%clk 0:02:58]} 6. f4 {[%clk 0:03:01]}  dxe5 {[%clk 0:02:57]} 7. fxe5 {[%clk 0:03:01]}  Nc6 {[%clk 0:02:54]} 8. Nc3 {[%clk 0:03:01]}  Bf5 {[%clk 0:02:46]} 9. a3 {[%clk 0:03:01]}  e6 {[%clk 0:02:42]} 10. Nf3 {[%clk 0:03:00]}  Be7 {[%clk 0:02:41]} 11. Bd3 {[%clk 0:03:00]}  Bxd3 {[%clk 0:02:30]} 12. Qxd3 {[%clk 0:03:01]}  O-O {[%clk 0:02:19]} 13. O-O {[%clk 0:02:59]}  Rc8 {[%clk 0:02:17]} 14. Qe4 {[%clk 0:02:29]}  Nxc3 {[%clk 0:01:58]} 15. bxc3 {[%clk 0:02:28]}  Na5 {[%clk 0:01:52]} 16. Bd2 {[%clk 0:02:24]}  Nb3 {[%clk 0:01:42]} 17. Rad1 {[%clk 0:02:14]}  Nxd2 {[%clk 0:01:41]} 18. Rxd2 {[%clk 0:02:15]}  Rxc3 {[%clk 0:01:40]} 19. Qxb7 {[%clk 0:02:13]}  Rxa3 {[%clk 0:01:36]} 20. Qe4 {[%clk 0:02:04]}  Qb6 {[%clk 0:01:27]} 21. Kh1 {[%clk 0:02:01]}  h6 {[%clk 0:01:25]} 22. h4 {[%clk 0:01:59]}  Qa5 {[%clk 0:01:04]} 23. Rdd1 {[%clk 0:01:48]}  Rb8 {[%clk 0:01:01]} 24. Qg4 {[%clk 0:01:47]}  Ra2 {[%clk 0:00:51]} 25. d5 {[%clk 0:01:38]}  exd5 {[%clk 0:00:36]} 26. e6 {[%clk 0:01:38]}  f6 {[%clk 0:00:30]} 27. Qh5 {[%clk 0:01:33]}  Qd8 {[%clk 0:00:15]} 28. Nd4 {[%clk 0:01:24]}  Rbb2 {[%clk 0:00:14]} 29. Rg1 {[%clk 0:01:18]}  f5 {[%clk 0:00:12]} 30. Qf7+ {[%clk 0:01:16]}  Kh8 {[%clk 0:00:09]} 31. Nc6 {[%clk 0:01:16]}  Ra4 {[%clk 0:00:05]} 32. Rd4 {[%clk 0:00:39]}  Rxd4 {[%clk 0:00:03]} 33. Nxd4 {[%clk 0:00:40]}  Qd6 {[%clk 0:00:02]} 34. Nxf5 {[%clk 0:00:39]} 1-0


[Site "https://www.chess.com"]

[Event "Titled Tuesday Blitz April 4 Late 2023"]
[White "Porat, Tori"]
[Black "Makaraci, Tunahan"]
[WhiteFideId "30982626"]
[BlackFideId "6356559"]
[WhiteElo "1752"]
[BlackElo "2160"]
[Result "0-1"]
[Round "03"]
[TimeControl "180+2"]
[Date "2023.04.04"]
[WhiteClock "0:00:24"]
[BlackClock "0:00:55"]

1. d4 {[%clk 0:03:00]}  d5 {[%clk 0:03:00]} 2. c4 {[%clk 0:03:00]}  e6 {[%clk 0:03:00]} 3. Nc3 {[%clk 0:02:58]}  c5 {[%clk 0:03:00]} 4. cxd5 {[%clk 0:02:56]}  cxd4 {[%clk 0:03:00]} 5. Qxd4 {[%clk 0:02:52]}  Nc6 {[%clk 0:03:00]} 6. Qe3 {[%clk 0:02:44]}  Nb4 {[%clk 0:02:58]} 7. Qd2 {[%clk 0:02:39]}  Nxd5 {[%clk 0:02:46]} 8. Nf3 {[%clk 0:02:33]}  Ngf6 {[%clk 0:02:46]} 9. e4 {[%clk 0:02:27]}  Nxc3 {[%clk 0:02:45]} 10. Qxd8+ {[%clk 0:02:15]}  Kxd8 {[%clk 0:02:46]} 11. bxc3 {[%clk 0:02:15]}  Nxe4 {[%clk 0:02:45]} 12. Bb2 {[%clk 0:02:13]}  Bc5 {[%clk 0:02:45]} 13. Nd4 {[%clk 0:02:11]}  e5 {[%clk 0:02:39]} 14. f3 {[%clk 0:02:10]}  Nxc3 {[%clk 0:02:28]} 15. Bxc3 {[%clk 0:02:10]}  exd4 {[%clk 0:02:27]} 16. Rd1 {[%clk 0:02:09]}  Re8+ {[%clk 0:02:26]} 17. Kf2 {[%clk 0:02:06]}  Kc7 {[%clk 0:02:05]} 18. Bxd4 {[%clk 0:02:05]}  Bxd4+ {[%clk 0:02:06]} 19. Rxd4 {[%clk 0:02:05]}  Be6 {[%clk 0:02:04]} 20. Bb5 {[%clk 0:02:04]}  Red8 {[%clk 0:02:04]} 21. Rc1+ {[%clk 0:02:02]}  Kb6 {[%clk 0:01:56]} 22. Rb4 {[%clk 0:01:50]}  a5 {[%clk 0:01:54]} 23. Rb2 {[%clk 0:01:48]}  Ka7 {[%clk 0:01:52]} 24. a4 {[%clk 0:01:48]}  Rac8 {[%clk 0:01:51]} 25. Rcb1 {[%clk 0:01:41]}  Bf5 {[%clk 0:01:45]} 26. Re1 {[%clk 0:01:37]}  Be6 {[%clk 0:01:40]} 27. Reb1 {[%clk 0:01:36]}  Rc7 {[%clk 0:01:41]} 28. Be2 {[%clk 0:01:31]}  Rd6 {[%clk 0:01:37]} 29. Rb5 {[%clk 0:01:29]}  b6 {[%clk 0:01:37]} 30. R5b2 {[%clk 0:01:14]}  Bd7 {[%clk 0:01:32]} 31. Bb5 {[%clk 0:01:11]}  Bxb5 {[%clk 0:01:30]} 32. Rxb5 {[%clk 0:01:00]}  Rc2+ {[%clk 0:01:29]} 33. Kg3 {[%clk 0:00:59]}  Rc4 {[%clk 0:01:22]} 34. Ra1 {[%clk 0:00:54]}  g6 {[%clk 0:01:18]} 35. Re5 {[%clk 0:00:53]}  Rd7 {[%clk 0:00:58]} 36. Rb5 {[%clk 0:00:52]}  Ka6 {[%clk 0:00:58]} 37. Ra2 {[%clk 0:00:46]}  Rdd4 {[%clk 0:00:54]} 38. Rab2 {[%clk 0:00:41]}  Rb4 {[%clk 0:00:54]} 39. R5xb4 {[%clk 0:00:36]}  Rxb4 {[%clk 0:00:55]} 40. Ra2 {[%clk 0:00:36]}  b5 {[%clk 0:00:55]} 41. axb5+ {[%clk 0:00:34]}  Kxb5 {[%clk 0:00:55]} 42. Kf2 {[%clk 0:00:34]}  a4 {[%clk 0:00:56]} 43. Ke3 {[%clk 0:00:35]}  Kc4 {[%clk 0:00:51]} 44. Kd2 {[%clk 0:00:32]}  Kb3 {[%clk 0:00:51]} 45. Rc2 {[%clk 0:00:23]}  Rd4+ {[%clk 0:00:49]} 46. Kc1 {[%clk 0:00:22]}  Rc4 {[%clk 0:00:49]} 47. Rxc4 {[%clk 0:00:21]}  Kxc4 {[%clk 0:00:50]} 48. g4 {[%clk 0:00:19]}  g5 {[%clk 0:00:50]} 49. h3 {[%clk 0:00:18]}  Kd3 {[%clk 0:00:50]} 50. Kb2 {[%clk 0:00:18]}  Ke3 {[%clk 0:00:50]} 51. Ka3 {[%clk 0:00:19]}  Kxf3 {[%clk 0:00:51]} 52. Kxa4 {[%clk 0:00:20]}  Kg3 {[%clk 0:00:52]} 53. Kb3 {[%clk 0:00:21]}  Kxh3 {[%clk 0:00:52]} 54. Kc3 {[%clk 0:00:22]}  Kxg4 {[%clk 0:00:53]} 55. Kd3 {[%clk 0:00:23]}  Kf3 {[%clk 0:00:54]} 56. Kd4 {[%clk 0:00:23]}  g4 {[%clk 0:00:54]} 57. Kd3 {[%clk 0:00:24]}  g3 {[%clk 0:00:55]} 0-1


[Site "https://www.chess.com"]

[Event "Titled Tuesday Blitz April 4 Late 2023"]
[White "Burke, Paul"]
[Black "Kilpatrick, Callum"]
[WhiteFideId "2605767"]
[BlackFideId "414425"]
[WhiteElo "1853"]
[BlackElo "2351"]
[Result "0-1"]
[Round "03"]
[TimeControl "180+2"]
[Date "2023.04.04"]
[WhiteClock "0:00:19"]
[BlackClock "0:01:52"]

1. e4 {[%clk 0:03:00]}  c5 {[%clk 0:02:56]} 2. d4 {[%clk 0:02:59]}  cxd4 {[%clk 0:02:46]} 3. c3 {[%clk 0:02:59]}  d5 {[%clk 0:02:46]} 4. exd5 {[%clk 0:02:59]}  Qxd5 {[%clk 0:02:47]} 5. cxd4 {[%clk 0:02:59]}  Nf6 {[%clk 0:02:46]} 6. Nf3 {[%clk 0:02:59]}  Nc6 {[%clk 0:02:44]} 7. Nc3 {[%clk 0:02:55]}  Qa5 {[%clk 0:02:44]} 8. Be2 {[%clk 0:02:55]}  e6 {[%clk 0:02:41]} 9. O-O {[%clk 0:02:54]}  Be7 {[%clk 0:02:39]} 10. h3 {[%clk 0:02:49]}  O-O {[%clk 0:02:40]} 11. Be3 {[%clk 0:02:49]}  Rd8 {[%clk 0:02:39]} 12. a3 {[%clk 0:02:35]}  a6 {[%clk 0:02:38]} 13. b4 {[%clk 0:02:28]}  Qc7 {[%clk 0:02:30]} 14. Rc1 {[%clk 0:02:26]}  Nd5 {[%clk 0:02:27]} 15. Nxd5 {[%clk 0:02:22]}  exd5 {[%clk 0:02:28]} 16. Ne5 {[%clk 0:02:19]}  Bd6 {[%clk 0:02:19]} 17. Nxc6 {[%clk 0:01:41]}  bxc6 {[%clk 0:02:19]} 18. Bf3 {[%clk 0:01:41]}  Be6 {[%clk 0:02:15]} 19. Qc2 {[%clk 0:01:39]}  Rdc8 {[%clk 0:02:15]} 20. Qd2 {[%clk 0:01:18]}  a5 {[%clk 0:02:11]} 21. Qb2 {[%clk 0:01:01]}  axb4 {[%clk 0:02:11]} 22. axb4 {[%clk 0:01:00]}  Qb6 {[%clk 0:02:11]} 23. Bd2 {[%clk 0:00:56]}  Rcb8 {[%clk 0:02:04]} 24. Qc2 {[%clk 0:00:49]}  Bd7 {[%clk 0:01:53]} 25. Rb1 {[%clk 0:00:40]}  Qxd4 {[%clk 0:01:52]} 26. Be3 {[%clk 0:00:22]}  Qe5 {[%clk 0:01:52]} 27. g3 {[%clk 0:00:19]}  Bf5 {[%clk 0:01:52]} 0-1


[Site "https://www.chess.com"]